fUSD/lending_fUSD_20250217
["ID","MTS","AMOUNT","RATE_DAILY","PERIOD"]
[353411453,1739818251643,-1124.34,0.00014355,2]
[353411455,1739818251653,-733.4,0.00014355,2]
[353411457,1739818251663,-520.15,0.00014355,2]
[353411459,1739818251672,-860.18,0.00014355,2]
[353411461,1739818251682,-500.0,0.00014355,2]
[353411463,1739818251692,-787.46,0.00014355,2]
[353411465,1739818251701,-500.0,0.00014356,2]
[353411467,1739818251711,-574.36,0.00014356,2]
[353411470,1739818251721,-500.0,0.00014356,2]
[353411472,1739818251731,-500.0,0.00014356,2]
[353411474,1739818251741,-500.0,0.00014356,2]
[353411476,1739818251751,-500.0,0.00014356,2]
[353411477,1739818251761,-500.0,0.00014356,2]
[353411479,1739818251771,-500.0,0.00014356,2]
[353411481,1739818251780,-500.0,0.00014356,2]
[353411483,1739818251790,-500.0,0.00014356,2]
[353411485,1739818251799,-500.0,0.00014356,2]
[353411487,1739818251808,-500.0,0.00014356,2]
[353411489,1739818251818,-501.05,0.00014356,2]
[353411491,1739818251828,-500.0,0.00014356,2]
[353411493,1739818251838,-500.0,0.00014356,2]
[353411495,1739818251848,-500.0,0.00014356,2]
[353411497,1739818251857,-579.73674351,0.00014356,2]
[353411499,1739818251867,-500.0,0.00014356,2]
[353411501,1739818251876,-500.0,0.00014356,2]
[353411503,1739818251886,-500.0,0.00014356,2]
[353411505,1739818251895,-500.0,0.00014356,2]
[353411507,1739818251906,-500.0,0.00014356,2]
[353411509,1739818251915,-500.0,0.00014356,2]
[353411511,1739818251925,-513.25,0.00014356,2]
[353411513,1739818251934,-500.0,0.00014356,2]
[353411515,1739818251944,-500.0,0.00014356,2]
[353411517,1739818251954,-548.83,0.00014356,2]
[353411519,1739818251964,-500.0,0.00014356,2]
[353411521,1739818251973,-500.0,0.00014356,2]
[353411523,1739818251984,-610.23,0.00014356,2]
[353411525,1739818251994,-500.0,0.00014356,2]
[353411527,1739818252004,-500.0,0.00014356,2]
[353411529,1739818252013,-1487.6,0.00014356,2]
[353411531,1739818252023,-500.0,0.00014356,2]
[353411533,1739818252033,-541.8,0.00014356,2]
[353411535,1739818252043,-678.49,0.00014356,2]
[353411537,1739818252053,-620.69,0.00014356,2]
[353411539,1739818252063,-500.0,0.00014356,2]
[353411541,1739818252073,-809.39,0.00014356,2]
[353411543,1739818252082,-500.0,0.00014356,2]
[353411545,1739818252091,-563.77,0.00014356,2]
[353411547,1739818252101,-500.0,0.00014356,2]
[353411549,1739818252111,-584.35,0.00014356,2]
[353411551,1739818252122,-531.61,0.00014356,2]
[353411553,1739818252131,-500.0,0.00014356,2]
[353411555,1739818252143,-1007.19,0.00014356,2]
[353411557,1739818252154,-959.88,0.00014356,2]
[353411559,1739818252163,-500.0,0.00014356,2]
[353411561,1739818252173,-500.0,0.00014356,2]
[353411563,1739818252183,-500.0,0.00014356,2]
[353411565,1739818252192,-596.38,0.00014356,2]
[353411567,1739818252202,-532.61,0.00014356,2]
[353411569,1739818252212,-500.0,0.00014356,2]
[353411571,1739818252222,-500.0,0.00014356,2]
[353411573,1739818252232,-944.92122274,0.00014356,2]
[353411613,1739818252705,-737.94291166,0.00012708,2]
[353411615,1739818252718,-362.05708834,0.00012708,2]
[353411617,1739818252728,-290.0,0.00013698,2]
[353411619,1739818252738,-500.0,0.00013698,2]
[353411621,1739818252748,-500.0,0.00013698,2]
[353411623,1739818252758,-500.0,0.00013779,2]
[353411625,1739818252767,-500.0,0.0001378,2]
[353411627,1739818252777,-500.0,0.0001378,2]
[353411629,1739818252787,-500.0,0.00013861,2]
[353411631,1739818252797,-500.0,0.00013863,2]
[353411633,1739818252808,-219.79362355,0.00013945,2]
[353411635,1739818252818,-204.05877726,0.00014356,2]
[353411637,1739818252827,-500.0,0.00014356,2]
[353411639,1739818252837,-500.0,0.00014356,2]
[353411641,1739818252846,-654.91,0.00014356,2]
[353411643,1739818252856,-670.94,0.00014356,2]
[353411645,1739818252866,-500.0,0.00014356,2]
[353411647,1739818252877,-986.68,0.00014356,2]
[353411649,1739818252887,-709.94,0.00014356,2]
[353411651,1739818252897,-627.05,0.00014356,2]
[353411653,1739818252906,-616.94,0.00014356,2]
[353411655,1739818252916,-500.0,0.00014356,2]
[353411657,1739818252926,-500.0,0.00014356,2]
[353411659,1739818252936,-510.34,0.00014356,2]
[353411661,1739818252946,-962.35,0.00014356,2]
[353411663,1739818252955,-500.0,0.00014356,2]
[353411665,1739818252965,-763.76,0.00014356,2]
[353411667,1739818252974,-500.0,0.00014356,2]
[353411669,1739818252985,-917.81,0.00014356,2]
[353411671,1739818252995,-864.55,0.00014356,2]
[353411673,1739818253005,-625.13,0.00014356,2]
[353411675,1739818253014,-583.43,0.00014356,2]
[353411677,1739818253024,-500.0,0.00014356,2]
[353411679,1739818253034,-532.14,0.00014356,2]
[353411681,1739818253045,-895.3,0.00014356,2]
[353411683,1739818253054,-799.84,0.00014356,2]
[353411685,1739818253064,-500.0,0.00014356,2]
[353411687,1739818253073,-500.0,0.00014356,2]
[353411689,1739818253082,-500.0,0.00014356,2]
[353411691,1739818253091,-500.0,0.00014356,2]
[353411693,1739818253101,-500.0,0.00014356,2]
[353411695,1739818253111,-500.0,0.00014356,2]
[353411697,1739818253121,-500.0,0.00014356,2]
[353411699,1739818253130,-402.85715326,0.00014356,2]
[353411701,1739818253144,-175.01284674,0.00014356,2]
[353411708,1739818253196,-500.0,0.00014356,2]
[353411710,1739818253206,-500.0,0.00014356,2]
[353411712,1739818253216,-500.0,0.00014356,2]
[353411713,1739818253225,-500.0,0.00014356,2]
[353411715,1739818253235,-1059.47,0.00014356,2]
[353411717,1739818253244,-500.0,0.00014356,2]
[353411719,1739818253254,-500.0,0.00014356,2]
[353411721,1739818253263,-500.0,0.00014356,2]
[353411723,1739818253273,-150.0,0.00014381,2]
[353411725,1739818253283,-150.0,0.00014381,2]
[353411727,1739818253292,-152.53401292,0.00014406,2]
[353411729,1739818253302,-150.0,0.0001442,2]
[353411731,1739818253311,-485.7177819,0.00014429,2]
[353411733,1739818253323,-330.38795612,0.00014429,2]
[353411736,1739818253334,-423.52250552,0.00014429,2]
[353411738,1739818253352,-500.0,0.00013944,2]
[353411740,1739818253361,-7260.37175646,0.00014429,2]
[353411742,1739818253371,-877.51,0.00014437,2]
[353411744,1739818253381,-835.55,0.00014437,2]
[353411745,1739818253391,-500.0,0.00014437,2]
[353411746,1739818253401,-500.0,0.00014437,2]
[353411747,1739818253413,-500.0,0.00014437,2]
[353411748,1739818253425,-500.0,0.00014437,2]
[353411749,1739818253435,-267.133275,0.00014437,2]
[353411750,1739818253445,-500.0,0.00014437,2]
[353411752,1739818253455,-31.83496854,0.00014437,2]
[353411759,1739818253508,-762.99006995,0.00011099,2]
[353411760,1739818253517,-500.0,0.00013863,2]
[353411762,1739818253527,-648.00993005,0.00014078,2]
[353411790,1739818253791,-291.36964339,0.00013698,2]
[353411792,1739818253806,-208.63035661,0.00013698,2]
[353411794,1739818253816,-300.15921742,0.000139,2]
[353411796,1739818253827,-1000.0,0.000139,2]
[353411798,1739818253837,-472.68,0.000139,2]
[353411818,1739818254150,-500.0,0.00013698,2]
[353411820,1739818254159,-1932.17064258,0.000139,2]
[353411821,1739818254170,-500.0,0.00013945,2]
[353411823,1739818254179,-500.0,0.00014026,2]
[353411825,1739818254188,-327.24131676,0.00014027,2]
[353411836,1739818254355,-500.0,0.0001378,2]
[353411838,1739818254364,-500.0,0.00013863,2]
[353411840,1739818254374,-500.0,0.00013945,2]
[353411841,1739818254385,-172.75868324,0.00014027,2]
[353411843,1739818254394,-264.04,0.00014027,2]
[353411845,1739818254404,-451.99006995,0.00014078,2]
[353411847,1739818254415,-500.0,0.00014108,2]
[353411849,1739818254433,-500.0,0.00014109,2]
[353411851,1739818254448,-245.76,0.0001419,2]
[353411853,1739818254459,-298.19846385,0.00014191,2]
[353411855,1739818254472,-142.52153615,0.00014191,2]
[353411858,1739818254482,-479.82503146,0.00014437,2]
[353411860,1739818254494,-57.85142508,0.00014437,2]
[353411862,1739818254506,-442.14857492,0.00014437,2]
[353411864,1739818254515,-237.263123,0.00014437,2]
[353411866,1739818254525,-733.16,0.00014437,2]
[353411868,1739818254534,-509.44,0.00014437,2]
[353411870,1739818254544,-513.78,0.00014437,2]
[353411871,1739818254553,-695.75,0.00014437,2]
[353411872,1739818254562,-2251.93,0.00014437,2]
[353411873,1739818254571,-500.0,0.00014437,2]
[353411874,1739818254580,-159.273776,0.00014437,2]
[353411875,1739818254589,-533.48,0.00014437,2]
[353411876,1739818254598,-687.19,0.00014437,2]
[353411877,1739818254607,-556.4,0.00014437,2]
[353411878,1739818254616,-703.47,0.00014437,2]
[353411879,1739818254626,-533.55,0.00014437,2]
[353411880,1739818254636,-500.0,0.00014437,2]
[353411881,1739818254646,-1124.34,0.00014437,2]
[353411882,1739818254656,-733.4,0.00014437,2]
[353411883,1739818254666,-520.15,0.00014437,2]
[353411884,1739818254677,-860.18,0.00014437,2]
[353411885,1739818254686,-500.0,0.00014437,2]
[353411886,1739818254696,-159.273772,0.00014437,2]
[353411887,1739818254706,-787.46,0.00014437,2]
[353411888,1739818254715,-8500.0,0.00014438,2]
[353411889,1739818254725,-500.0,0.00014438,2]
[353411890,1739818254735,-574.36,0.00014438,2]
[353411892,1739818254744,-500.0,0.00014438,2]
[353411893,1739818254754,-500.0,0.00014438,2]
[353411894,1739818254763,-500.0,0.00014438,2]
[353411896,1739818254773,-500.0,0.00014438,2]
[353411898,1739818254782,-500.0,0.00014438,2]
[353411900,1739818254792,-500.0,0.00014438,2]
[353411902,1739818254802,-500.0,0.00014438,2]
[353411904,1739818254812,-500.0,0.00014438,2]
[353411906,1739818254822,-500.0,0.00014438,2]
[353411908,1739818254831,-500.0,0.00014438,2]
[353411910,1739818254841,-501.05,0.00014438,2]
[353411912,1739818254851,-500.0,0.00014438,2]
[353411913,1739818254860,-500.0,0.00014438,2]
[353411915,1739818254869,-500.0,0.00014438,2]
[353411917,1739818254879,-500.0,0.00014438,2]
[353411919,1739818254891,-500.0,0.00014438,2]
[353411921,1739818254901,-500.0,0.00014438,2]
[353411923,1739818254910,-500.0,0.00014438,2]
[353411925,1739818254920,-500.0,0.00014438,2]
[353411927,1739818254930,-500.0,0.00014438,2]
[353411929,1739818254940,-500.0,0.00014438,2]
[353411931,1739818254950,-548.83,0.00014438,2]
[353411933,1739818254960,-500.0,0.00014438,2]
[353411935,1739818254970,-500.0,0.00014438,2]
[353411937,1739818254979,-610.23,0.00014438,2]
[353411939,1739818254989,-500.0,0.00014438,2]
[353411941,1739818254999,-500.0,0.00014438,2]
[353411943,1739818255008,-1487.6,0.00014438,2]
[353411945,1739818255018,-500.0,0.00014438,2]
[353411947,1739818255027,-541.8,0.00014438,2]
[353411949,1739818255037,-678.49,0.00014438,2]
[353411951,1739818255046,-620.69,0.00014438,2]
[353411953,1739818255055,-500.0,0.00014438,2]
[353411954,1739818255065,-809.39,0.00014438,2]
[353411956,1739818255074,-500.0,0.00014438,2]
[353411959,1739818255084,-563.77,0.00014438,2]
[353411961,1739818255094,-500.0,0.00014438,2]
[353411963,1739818255105,-584.35,0.00014438,2]
[353411965,1739818255114,-531.61,0.00014438,2]
[353411967,1739818255123,-500.0,0.00014438,2]
[353411968,1739818255133,-1007.19,0.00014438,2]
[353411970,1739818255143,-959.88,0.00014438,2]
[353411973,1739818255152,-500.0,0.00014438,2]
[353411974,1739818255162,-500.0,0.00014438,2]
[353411977,1739818255172,-500.0,0.00014438,2]
[353411979,1739818255181,-596.38,0.00014438,2]
[353411980,1739818255191,-532.61,0.00014438,2]
[353411982,1739818255202,-500.0,0.00014438,2]
[353411985,1739818255213,-500.0,0.00014438,2]
[353411986,1739818255223,-1148.98,0.00014438,2]
[353411988,1739818255233,-500.0,0.00014438,2]
[353411990,1739818255242,-654.91,0.00014438,2]
[353411992,1739818255252,-500.0,0.00014438,2]
[353411994,1739818255261,-670.94,0.00014438,2]
[353411996,1739818255271,-500.0,0.00014438,2]
[353411998,1739818255280,-986.68,0.00014438,2]
[353412000,1739818255290,-709.94,0.00014438,2]
[353412002,1739818255299,-627.05,0.00014438,2]
[353412004,1739818255310,-616.94,0.00014438,2]
[353412006,1739818255320,-500.0,0.00014438,2]
[353412008,1739818255330,-500.0,0.00014438,2]
[353412010,1739818255340,-510.34,0.00014438,2]
[353412012,1739818255349,-962.35,0.00014438,2]
[353412014,1739818255359,-500.0,0.00014438,2]
[353412016,1739818255368,-763.76,0.00014438,2]
[353412018,1739818255378,-500.0,0.00014438,2]
[353412020,1739818255388,-917.81,0.00014438,2]
[353412022,1739818255397,-864.55,0.00014438,2]
[353412024,1739818255407,-625.13,0.00014438,2]
[353412026,1739818255420,-583.43,0.00014438,2]
[353412028,1739818255429,-500.0,0.00014438,2]
[353412030,1739818255439,-532.14,0.00014438,2]
[353412032,1739818255448,-895.3,0.00014438,2]
[353412034,1739818255458,-799.84,0.00014438,2]
[353412036,1739818255467,-500.0,0.00014438,2]
[353412038,1739818255477,-500.0,0.00014438,2]
[353412040,1739818255486,-500.0,0.00014438,2]
[353412042,1739818255496,-500.0,0.00014438,2]
[353412044,1739818255506,-500.0,0.00014438,2]
[353412046,1739818255515,-500.0,0.00014438,2]
[353412048,1739818255524,-500.0,0.00014438,2]
[353412050,1739818255534,-577.87,0.00014438,2]
[353412052,1739818255543,-500.0,0.00014438,2]
[353412054,1739818255552,-500.0,0.00014438,2]
[353412056,1739818255562,-500.0,0.00014438,2]
[353412058,1739818255572,-500.0,0.00014438,2]
[353412060,1739818255581,-1059.47,0.00014438,2]
[353412062,1739818255591,-500.0,0.00014438,2]
[353412064,1739818255600,-500.0,0.00014438,2]
[353412066,1739818255610,-500.0,0.00014438,2]
[353412068,1739818255620,-5713.77464163,0.00014459,2]
[353412070,1739818255630,-150.0,0.00014471,2]
[353412072,1739818255642,-150.0,0.0001448,2]
[353412074,1739818255652,-6500.0,0.000145,5]
[353412076,1739818255661,-877.51,0.00014519,2]
[353412078,1739818255671,-835.55,0.00014519,2]
[353412080,1739818255681,-500.0,0.00014519,2]
[353412082,1739818255692,-500.0,0.00014519,2]
[353412085,1739818255704,-500.0,0.00014519,2]
[353412086,1739818255713,-267.133275,0.00014519,2]
[353412088,1739818255723,-500.0,0.00014519,2]
[353412090,1739818255733,-511.66,0.00014519,2]
[353412092,1739818255742,-500.0,0.00014519,2]
[353412094,1739818255752,-237.263123,0.00014519,2]
[353412096,1739818255762,-733.16,0.00014519,2]
[353412098,1739818255771,-509.44,0.00014519,2]
[353412100,1739818255781,-513.78,0.00014519,2]
[353412102,1739818255790,-695.75,0.00014519,2]
[353412104,1739818255799,-2251.93,0.00014519,2]
[353412106,1739818255808,-500.0,0.00014519,2]
[353412107,1739818255818,-533.48,0.00014519,2]
[353412109,1739818255828,-687.19,0.00014519,2]
[353412112,1739818255838,-556.4,0.00014519,2]
[353412114,1739818255848,-703.47,0.00014519,2]
[353412116,1739818255857,-500.0,0.00014519,2]
[353412118,1739818255867,-1124.34,0.00014519,2]
[353412120,1739818255876,-733.4,0.00014519,2]
[353412122,1739818255888,-520.15,0.00014519,2]
[353412124,1739818255897,-860.18,0.00014519,2]
[353412126,1739818255906,-500.0,0.00014519,2]
[353412128,1739818255916,-787.46,0.00014519,2]
[353412130,1739818255925,-1762.0,0.0001452,2]
[353412131,1739818255934,-198.29281682,0.0001452,2]
[353412133,1739818255944,-574.36,0.0001452,2]
[353412135,1739818255953,-500.0,0.0001452,2]
[353412137,1739818255963,-561.76230051,0.0001452,2]
[353412139,1739818255972,-500.0,0.0001452,2]
[353412141,1739818255982,-500.0,0.0001452,2]
[353412143,1739818255992,-500.0,0.0001452,2]
[353412145,1739818256001,-500.0,0.0001452,2]
[353412147,1739818256010,-500.0,0.0001452,2]
[353412149,1739818256020,-500.0,0.0001452,2]
[353412151,1739818256030,-500.0,0.0001452,2]
[353412153,1739818256040,-500.0,0.0001452,2]
[353412155,1739818256049,-501.05,0.0001452,2]
[353412158,1739818256059,-500.0,0.0001452,2]
[353412160,1739818256069,-500.0,0.0001452,2]
[353412162,1739818256079,-500.0,0.0001452,2]
[353412163,1739818256088,-467.73196899,0.0001452,2]
[353412165,1739818256098,-500.0,0.0001452,2]
[353412167,1739818256107,-500.0,0.0001452,2]
[353412169,1739818256117,-500.0,0.0001452,2]
[353412171,1739818256127,-500.0,0.0001452,2]
[353412173,1739818256139,-500.0,0.0001452,2]
[353412175,1739818256149,-500.0,0.0001452,2]
[353412177,1739818256160,-548.83,0.0001452,2]
[353412179,1739818256171,-500.0,0.0001452,2]
[353412181,1739818256181,-500.0,0.0001452,2]
[353412183,1739818256191,-610.23,0.0001452,2]
[353412186,1739818256200,-500.0,0.0001452,2]
[353412188,1739818256210,-500.0,0.0001452,2]
[353412190,1739818256220,-1487.6,0.0001452,2]
[353412192,1739818256230,-500.0,0.0001452,2]
[353412194,1739818256240,-541.8,0.0001452,2]
[353412196,1739818256249,-678.49,0.0001452,2]
[353412198,1739818256259,-620.69,0.0001452,2]
[353412200,1739818256268,-500.0,0.0001452,2]
[353412202,1739818256278,-809.39,0.0001452,2]
[353412204,1739818256289,-500.0,0.0001452,2]
[353412206,1739818256299,-563.77,0.0001452,2]
[353412207,1739818256308,-500.0,0.0001452,2]
[353412209,1739818256319,-584.35,0.0001452,2]
[353412212,1739818256328,-531.61,0.0001452,2]
[353412213,1739818256338,-500.0,0.0001452,2]
[353412215,1739818256348,-1007.19,0.0001452,2]
[353412217,1739818256357,-959.88,0.0001452,2]
[353412220,1739818256367,-500.0,0.0001452,2]
[353412221,1739818256377,-500.0,0.0001452,2]
[353412224,1739818256389,-500.0,0.0001452,2]
[353412226,1739818256398,-596.38,0.0001452,2]
[353412228,1739818256409,-532.61,0.0001452,2]
[353412230,1739818256418,-500.0,0.0001452,2]
[353412231,1739818256433,-500.0,0.0001452,2]
[353412233,1739818256443,-1148.98,0.0001452,2]
[353412235,1739818256453,-500.0,0.0001452,2]
[353412237,1739818256462,-500.0,0.0001452,2]
[353412239,1739818256473,-654.91,0.0001452,2]
[353412241,1739818256482,-670.94,0.0001452,2]
[353412243,1739818256492,-500.0,0.0001452,2]
[353412245,1739818256504,-986.68,0.0001452,2]
[353412247,1739818256514,-709.94,0.0001452,2]
[353412250,1739818256524,-627.05,0.0001452,2]
[353412252,1739818256534,-616.94,0.0001452,2]
[353412254,1739818256543,-500.0,0.0001452,2]
[353412256,1739818256554,-500.0,0.0001452,2]
[353412258,1739818256564,-510.34,0.0001452,2]
[353412259,1739818256573,-962.35,0.0001452,2]
[353412261,1739818256583,-500.0,0.0001452,2]
[353412263,1739818256593,-763.76,0.0001452,2]
[353412265,1739818256603,-500.0,0.0001452,2]
[353412267,1739818256612,-917.81,0.0001452,2]
[353412269,1739818256622,-864.55,0.0001452,2]
[353412271,1739818256632,-625.13,0.0001452,2]
[353412274,1739818256644,-583.43,0.0001452,2]
[353412276,1739818256654,-500.0,0.0001452,2]
[353412278,1739818256664,-532.14,0.0001452,2]
[353412280,1739818256673,-895.3,0.0001452,2]
[353412282,1739818256683,-799.84,0.0001452,2]
[353412284,1739818256692,-500.0,0.0001452,2]
[353412286,1739818256704,-500.0,0.0001452,2]
[353412288,1739818256714,-500.0,0.0001452,2]
[353412290,1739818256724,-500.0,0.0001452,2]
[353412292,1739818256734,-500.0,0.0001452,2]
[353412294,1739818256744,-500.0,0.0001452,2]
[353412296,1739818256754,-500.0,0.0001452,2]
[353412298,1739818256764,-577.87,0.0001452,2]
[353412300,1739818256774,-609.88349511,0.0001452,2]
[353412302,1739818256785,-500.0,0.0001452,2]
[353412304,1739818256794,-500.0,0.0001452,2]
[353412306,1739818256804,-500.0,0.0001452,2]
[353412308,1739818256814,-1059.47,0.0001452,2]
[353412310,1739818256823,-500.0,0.0001452,2]
[353412312,1739818256833,-500.0,0.0001452,2]
[353412314,1739818256842,-500.0,0.0001452,2]
[353412316,1739818256852,-150.0,0.00014579,2]
[353412318,1739818256862,-670.3481224,0.00014586,2]
[353412320,1739818256871,-142.34467298,0.000146,5]
[353412322,1739818256887,-833.87987711,0.000146,5]
[353412326,1739818256911,-1164.90682513,0.000146,5]
[353412328,1739818256922,-2417.74338737,0.000146,5]
[353412330,1739818256934,-1415.98711561,0.000146,5]
[353412332,1739818256946,-3825.1381218,0.000146,5]
[353412334,1739818256955,-408.64140171,0.00014601,2]
[353412337,1739818256967,-2240.97459829,0.00014601,2]
[353412339,1739818256977,-172.843,0.00014601,2]
[353412341,1739818256988,-877.51,0.00014601,2]
[353412343,1739818256998,-835.55,0.00014601,2]
[353412345,1739818257008,-500.0,0.00014601,2]
[353412347,1739818257017,-500.0,0.00014601,2]
[353412349,1739818257027,-500.0,0.00014601,2]
[353412351,1739818257037,-267.133275,0.00014601,2]
[353412353,1739818257047,-500.0,0.00014601,2]
[353412354,1739818257058,-511.66,0.00014601,2]
[353412355,1739818257068,-500.0,0.00014601,2]
[353412356,1739818257077,-237.263123,0.00014601,2]
[353412357,1739818257087,-733.16,0.00014601,2]
[353412358,1739818257097,-157.109846,0.00014601,2]
[353412359,1739818257107,-509.44,0.00014601,2]
[353412360,1739818257116,-513.78,0.00014601,2]
[353412361,1739818257126,-97.37615784,0.00014601,2]
[353412364,1739818257179,-762.99006992,0.00011099,2]
[353412367,1739818257190,-500.0,0.00013698,2]
[353412369,1739818257200,-497.02,0.00013698,2]
[353412371,1739818257210,-598.37384216,0.00014601,2]
[353412373,1739818257219,-2251.93,0.00014601,2]
[353412375,1739818257229,-167.177788,0.00014601,2]
[353412377,1739818257239,-500.0,0.00014601,2]
[353412379,1739818257249,-533.48,0.00014601,2]
[353412381,1739818257260,-687.19,0.00014601,2]
[353412383,1739818257270,-556.4,0.00014601,2]
[353412385,1739818257280,-703.47,0.00014601,2]
[353412387,1739818257290,-500.0,0.00014601,2]
[353412389,1739818257299,-1124.34,0.00014601,2]
[353412391,1739818257310,-733.4,0.00014601,2]
[353412393,1739818257320,-520.15,0.00014601,2]
[353412395,1739818257330,-860.18,0.00014601,2]
[353412397,1739818257340,-167.177783,0.00014601,2]
[353412399,1739818257350,-500.0,0.00014601,2]
[353412401,1739818257360,-787.46,0.00014601,2]
[353412403,1739818257370,-574.36,0.00014602,2]
[353412405,1739818257379,-500.0,0.00014602,2]
[353412407,1739818257390,-500.0,0.00014602,2]
[353412409,1739818257399,-500.0,0.00014602,2]
[353412411,1739818257410,-500.0,0.00014602,2]
[353412413,1739818257423,-491.3556887,0.00014602,2]
[353412416,1739818257435,-8.6443113,0.00014602,2]
[353412418,1739818257445,-423.3556887,0.00014602,2]
[353412434,1739818257593,-500.0,0.00013698,2]
[353412436,1739818257604,-500.0,0.0001378,2]
[353412438,1739818257614,-500.0,0.0001378,2]
[353412440,1739818257623,-500.0,0.00013863,2]
[353412442,1739818257634,-258.04,0.00013863,2]
[353412444,1739818257645,-500.0,0.00013945,2]
[353412445,1739818257656,-244.99,0.00014027,2]
[353412447,1739818257667,-76.6443113,0.00014602,2]
[353412450,1739818257677,-500.0,0.00014602,2]
[353412452,1739818257688,-500.0,0.00014602,2]
[353412454,1739818257699,-500.0,0.00014602,2]
[353412456,1739818257711,-501.05,0.00014602,2]
[353412458,1739818257721,-500.0,0.00014602,2]
[353412460,1739818257731,-500.0,0.00014602,2]
[353412462,1739818257741,-500.0,0.00014602,2]
[353412463,1739818257751,-500.0,0.00014602,2]
[353412464,1739818257762,-500.0,0.00014602,2]
[353412465,1739818257772,-500.0,0.00014602,2]
[353412466,1739818257783,-500.0,0.00014602,2]
[353412467,1739818257793,-500.0,0.00014602,2]
[353412468,1739818257803,-500.0,0.00014602,2]
[353412470,1739818257814,-548.83,0.00014602,2]
[353412472,1739818257824,-500.0,0.00014602,2]
[353412474,1739818257834,-500.0,0.00014602,2]
[353412475,1739818257845,-610.23,0.00014602,2]
[353412477,1739818257855,-500.0,0.00014602,2]
[353412479,1739818257866,-500.0,0.00014602,2]
[353412481,1739818257876,-897.10924047,0.00014602,2]
[353412504,1739818258192,-500.0,0.00013698,2]
[353412506,1739818258201,-555.21291166,0.00013698,2]
[353412515,1739818258278,-67.77579037,0.00013698,2]
[353412517,1739818258288,-500.0,0.00013779,2]
[353412519,1739818258298,-350.22420963,0.0001378,2]
[353412521,1739818258310,-149.77579037,0.0001378,2]
[353412523,1739818258320,-409.01,0.00013863,2]
[353412525,1739818258330,-590.49075953,0.00014602,2]
[353412527,1739818258340,-500.0,0.00014602,2]
[353412529,1739818258349,-678.49,0.00014602,2]
[353412531,1739818258358,-620.69,0.00014602,2]
[353412533,1739818258368,-500.0,0.00014602,2]
[353412535,1739818258377,-809.39,0.00014602,2]
[353412537,1739818258387,-545.63926254,0.00014602,2]
[353412539,1739818258397,-563.77,0.00014602,2]
[353412541,1739818258407,-500.0,0.00014602,2]
[353412543,1739818258420,-584.35,0.00014602,2]
[353412545,1739818258429,-531.61,0.00014602,2]
[353412547,1739818258439,-500.0,0.00014602,2]
[353412549,1739818258449,-1007.19,0.00014602,2]
[353412551,1739818258458,-959.88,0.00014602,2]
[353412553,1739818258468,-500.0,0.00014602,2]